bitfinex-derivatives/quotes_SOLF0:USTF0_20250106
["timestamp","ask_amount","ask_price","bid_price","bid_amount"]
[1736160207211,2.3269,214.95,214.91,2.3272]
[1736160207412,2.3269,214.95,214.91,9.70397664]
[1736160207816,7.37677664,214.98,214.91,7.37677664]
[1736160208012,2.3271,214.94,214.9,2.3273]
[1736160208213,4.8671,214.94,214.9,2.3273]
[1736160210408,2.54,214.94,214.89,7.37677664]
[1736160210714,2.3272,214.92,214.89,2.3275]
[1736160212718,2.3271,214.93,214.9,2.3274]
[1736160218720,2.54,214.94,214.88,8.87947664]
[1736160218921,2.54,214.95,214.91,7.37677664]
[1736160219120,2.54,214.96,214.91,7.37677664]
[1736160219326,4.8669,214.96,214.92,2.3272]
[1736160222319,2.54,214.96,214.93,7.37677664]
[1736160223430,4.8666,214.98,214.95,2.3269]
[1736160225324,2.3268,214.96,214.91,2.3272]
[1736160225623,2.3268,214.96,214.92,7.37677664]
[1736160226825,2.3267,214.97,214.93,2.327]
[1736160227020,2.54,214.98,214.92,7.37677664]
[1736160227521,4.8666,214.98,214.94,2.3269]
[1736160227920,4.8666,214.98,214.92,7.37677664]
[1736160229026,4.8666,214.98,214.94,2.3269]
[1736160231122,2.3267,214.97,214.94,2.3269]
[1736160238630,7.37677664,214.97,214.89,1.5104]
[1736160238930,7.37677664,214.95,214.89,1.5104]
[1736160239339,2.3273,214.92,214.88,3.8303]
[1736160239631,7.37677664,214.95,214.88,3.8303]
[1736160240226,2.3273,214.91,214.88,3.8303]
[1736160241537,2.3274,214.9,214.87,2.3277]
[1736160242141,2.3276,214.89,214.85,2.3279]
[1736160244234,2.3276,214.89,214.86,2.3278]
[1736160245845,2.3274,214.9,214.87,2.3277]
[1736160246247,2.54,214.92,214.86,7.37677664]
[1736160246840,4.8673,214.92,214.86,7.37677664]
[1736160247247,4.8673,214.92,214.88,2.3276]
[1736160248950,4.8673,214.92,214.86,7.37677664]
[1736160249146,4.8673,214.92,214.89,2.3275]
[1736160254659,4.8673,214.92,214.86,7.37677664]
[1736160254960,2.3273,214.91,214.88,2.3276]
[1736160260065,2.3275,214.9,214.86,2.3278]
[1736160260257,9.91677664,214.92,214.86,2.3278]
[1736160260961,2.3275,214.89,214.86,2.3278]
[1736160269369,2.3276,214.89,214.86,2.3278]
[1736160271866,9.91677664,214.92,214.85,7.37677664]
[1736160272071,9.91677664,214.92,214.87,2.3277]
[1736160272271,9.91677664,214.92,214.84,7.37677664]
[1736160272669,2.3276,214.89,214.86,2.3278]
[1736160273571,9.91677664,214.92,214.84,7.37677664]
[1736160273869,2.3275,214.9,214.87,2.3277]
[1736160274967,7.37677664,214.88,214.82,29.37689257]
[1736160275272,2.3281,214.84,214.82,31.70519257]
[1736160276475,2.3281,214.84,214.82,29.37689257]
[1736160277572,2.3281,214.84,214.81,2.3284]
[1736160277873,2.328,214.85,214.81,2.3284]
[1736160278573,2.328,214.85,214.8,2.3284]
[1736160278771,2.3281,214.84,214.79,8.90657664]
[1736160279273,2.3281,214.84,214.81,2.3283]
[1736160279573,2.328,214.85,214.79,8.90657664]
[1736160280471,2.328,214.85,214.81,7.37677664]
[1736160281274,2.328,214.85,214.82,2.3283]
[1736160281774,2.3279,214.86,214.83,2.3281]
[1736160284474,2.54,214.87,214.83,2.3281]
[1736160284675,2.54,214.87,214.81,7.37677664]
[1736160284875,2.54,214.87,214.85,2.328]
[1736160285573,1.4204,214.91,214.83,7.37677664]
[1736160285877,2.54,214.9,214.87,2.3277]
[1736160286075,2.54,214.89,214.87,2.3277]
[1736160286676,2.54,214.89,214.88,2.3276]
[1736160290671,2.54,214.89,214.87,2.3277]
[1736160296781,2.54,214.89,214.88,2.3276]
[1736160297182,2.54,214.89,214.85,7.37677664]
[1736160298485,2.54,214.89,214.87,2.3277]
[1736160300387,2.54,214.89,214.79,1.5298]
[1736160300587,2.54,214.89,214.84,7.37677664]
[1736160301289,2.3277,214.88,214.85,2.3279]
[1736160302882,2.54,214.89,214.84,7.37677664]
[1736160303084,4.8676,214.89,214.86,2.3278]
[1736160313291,4.8676,214.89,214.87,2.3277]
[1736160315896,4.8676,214.89,214.86,2.3278]
[1736160325209,7.37677664,214.88,214.82,2.3283]
[1736160325414,7.37677664,214.86,214.8,7.37677664]
[1736160325611,7.37677664,214.86,214.79,8.90657664]
[1736160326410,2.3282,214.84,214.81,2.3284]
[1736160326609,4.8682,214.84,214.81,2.3284]
[1736160329717,4.8682,214.84,214.81,7.37677664]
[1736160330020,2.54,214.84,214.82,2.3282]
[1736160332919,4.8681,214.84,214.82,2.3282]
[1736160333722,4.8681,214.84,214.8,7.37677664]
[1736160333921,2.54,214.84,214.79,7.37677664]
[1736160334125,2.54,214.84,214.78,2.35415308]
[1736160334316,2.54,214.84,214.79,7.37677664]
[1736160335215,2.3283,214.82,214.79,9.70537664]
[1736160335421,9.91677664,214.84,214.79,7.37677664]
[1736160335621,2.3284,214.82,214.79,7.37677664]
[1736160335821,2.3284,214.82,214.78,4.68275308]
[1736160336125,9.91677664,214.84,214.78,12.05952972]
[1736160336322,2.3283,214.82,214.79,2.3286]
[1736160338326,2.3284,214.81,214.78,2.35415308]
[1736160338526,2.3284,214.81,214.78,4.68285308]
[1736160340427,2.3285,214.8,214.78,4.68285308]
[1736160340730,2.3285,214.8,214.78,2.35415308]
[1736160341030,2.3285,214.8,214.77,9.70557664]
[1736160341232,2.3285,214.8,214.77,2.3288]
[1736160342021,2.3288,214.78,214.69,6.8312]
[1736160342220,2.3288,214.78,214.74,7.37677664]
[1736160342830,2.3288,214.78,214.75,2.329]
[1736160344931,2.3288,214.77,214.75,2.329]
[1736160346135,2.54,214.79,214.75,2.329]
[1736160346335,2.3288,214.78,214.75,2.329]
[1736160347029,2.54,214.79,214.76,7.37677664]
[1736160347633,2.54,214.79,214.78,9.70547664]
[1736160347938,1.4565,214.87,214.78,7.37677664]
[1736160347939,2.54,214.82,214.78,7.37677664]
[1736160348137,2.54,214.82,214.81,7.37677664]
[1736160348736,2.54,214.82,214.81,9.70517664]
[1736160349139,2.54,214.82,214.81,7.37677664]
[1736160355143,2.54,214.82,214.69,6.8312]
[1736160355444,2.54,214.82,214.75,7.37677664]
[1736160356442,2.3286,214.8,214.77,2.3288]
[1736160360547,2.3286,214.8,214.75,7.37677664]
[1736160360548,2.3286,214.8,214.78,2.3287]
[1736160360748,2.3288,214.78,214.75,7.37677664]
[1736160361447,2.3288,214.78,214.76,2.3289]
[1736160363953,2.3288,214.78,214.69,6.8312]
[1736160364250,2.3288,214.78,214.75,2.329]
[1736160365446,2.3288,214.78,214.76,2.3289]
[1736160366854,2.3288,214.78,214.75,2.329]
[1736160367150,9.91677664,214.82,214.74,7.37677664]
[1736160367352,7.37677664,214.8,214.73,7.37677664]
[1736160367954,7.37677664,214.8,214.69,4.2912]
[1736160368154,7.37677664,214.78,214.71,7.37677664]
[1736160368458,2.54,214.77,214.71,7.37677664]
[1736160369357,2.54,214.77,214.74,7.37677664]
[1736160369856,2.54,214.77,214.76,2.3289]
[1736160371055,2.8618,214.85,214.76,7.37677664]
[1736160371245,2.3283,214.82,214.76,7.37677664]
[1736160371853,2.3283,214.82,214.78,7.37677664]
[1736160372149,1.4905,214.88,214.8,7.37677664]
[1736160372350,2.54,214.87,214.82,7.37677664]
[1736160372662,8.86727664,214.88,214.82,7.37677664]
[1736160372663,1.4905,214.88,214.84,2.328]
[1736160372952,2.54,214.87,214.84,2.328]
[1736160373157,7.37677664,214.9,214.84,2.328]
[1736160373158,2.3276,214.88,214.84,2.328]
[1736160373359,2.54,214.87,214.85,2.328]
[1736160373657,129.7078345,214.91,214.85,2.328]
[1736160373854,9.91677664,214.88,214.7,1.4609]
[1736160374158,2.54,214.87,214.8,7.37677664]
[1736160375559,2.3281,214.85,214.81,2.3284]
[1736160375856,2.54,214.87,214.82,7.37677664]
[1736160376251,2.54,214.87,214.84,7.37677664]
[1736160376655,2.3275,214.89,214.84,9.70477664]
[1736160376957,2.54,214.88,214.84,7.37677664]
[1736160378346,2.54,214.88,214.86,7.37677664]
[1736160379152,1.477,214.93,214.86,7.37677664]
[1736160379357,4.8672,214.92,214.88,9.70437664]
[1736160379558,2.54,214.91,214.88,9.70437664]
[1736160379755,7.37677664,214.95,214.88,9.70437664]
[1736160379955,2.3273,214.92,214.88,9.70437664]
[1736160380161,2.54,214.94,214.88,7.37677664]
[1736160380657,2.3273,214.91,214.88,7.37677664]
[1736160381147,2.54,214.94,214.78,3.0002]
[1736160381148,7.37677664,214.93,214.78,3.0002]
[1736160381354,2.3276,214.89,214.85,7.37677664]
[1736160381559,4.8676,214.89,214.85,7.37677664]
[1736160382555,4.8676,214.89,214.85,9.70477664]
[1736160385860,4.8676,214.89,214.85,7.37677664]
[1736160386061,4.8676,214.89,214.86,2.3279]
[1736160386261,2.54,214.89,214.87,7.37677664]
[1736160386564,2.54,214.89,214.87,9.70447664]
[1736160396057,1.4218,214.98,214.87,7.37677664]
[1736160396264,2.3269,214.95,214.92,7.37677664]
[1736160396764,1.4218,214.98,214.94,7.37677664]
[1736160396966,2.54,214.97,214.94,7.37677664]
[1736160397764,2.54,214.97,214.96,7.37677664]
[1736160397958,2.54,214.97,214.94,7.37677664]
[1736160398567,2.3268,214.96,214.94,7.37677664]
[1736160398769,2.54,214.96,214.94,7.37677664]
[1736160399467,2.54,214.96,214.94,9.70377664]
[1736160400364,4.8668,214.96,214.94,7.37677664]
[1736160400957,2.54,214.96,214.86,1.4986]
[1736160401165,2.54,214.96,214.9,7.37677664]
[1736160401760,2.3272,214.93,214.9,7.37677664]
[1736160401958,2.3272,214.93,214.92,7.37677664]
[1736160402873,2.54,214.96,214.92,7.37677664]
[1736160403059,2.327,214.94,214.92,7.37677664]
[1736160406967,2.3261,215.03,214.99,2.3264]
[1736160407173,2.54,215.04,214.99,7.37677664]
[1736160407876,4.866,215.04,214.99,7.37677664]
[1736160408368,4.866,215.04,214.99,9.70317664]
[1736160409670,2.3261,215.03,214.99,9.70317664]
[1736160410269,2.54,215.04,215.01,2.3262]
[1736160410474,2.54,215.04,215.01,9.70297664]
[1736160414567,8.88907664,215.08,215.01,7.37677664]
[1736160414772,2.3257,215.06,215.03,9.70277664]
[1736160415779,2.3257,215.06,215.02,2.3261]
[1736160418173,7.37677664,215.06,214.95,4.2816]
[1736160418375,2.3263,215.01,214.97,2.3266]
[1736160420878,2.3263,215.01,214.98,7.37677664]
[1736160422377,2.54,215.02,215.0,7.37677664]
[1736160422773,1.5123,215.08,215.0,7.37677664]
[1736160422774,2.58,215.06,215.0,7.37677664]
[1736160422979,7.37677664,215.07,215.0,7.37677664]
[1736160423281,2.58,215.06,215.0,7.37677664]
[1736160423987,2.3258,215.05,215.02,2.3261]
[1736160424279,2.3258,215.05,215.02,9.70287664]
[1736160427385,2.3258,215.05,215.02,7.37677664]
[1736160427589,2.3259,215.04,215.02,7.37677664]
[1736160427783,2.58,215.06,214.99,7.37677664]
[1736160427985,7.37677664,215.05,214.97,2.3266]
[1736160428280,2.58,215.06,215.02,7.37677664]
[1736160428482,2.58,215.06,215.02,9.70287664]
[1736160429575,2.3258,215.05,215.02,9.70287664]
[1736160431884,2.58,215.06,215.02,7.37677664]
[1736160432086,4.9058,215.06,215.03,2.326]
[1736160434090,129.7078345,215.14,215.04,7.37677664]
[1736160434292,2.3252,215.11,215.07,9.70237664]
[1736160434587,2.58,215.12,215.07,9.70237664]
[1736160434788,2.3253,215.1,215.07,9.70237664]
[1736160435687,2.3252,215.11,215.08,2.3255]
[1736160437987,2.3252,215.11,215.09,7.37677664]
[1736160439090,2.3254,215.09,215.06,7.37677664]
[1736160439483,9.95677664,215.12,215.06,7.37677664]
[1736160439686,2.3255,215.08,215.06,7.37677664]
[1736160446190,2.3252,215.11,215.08,2.3254]
[1736160446388,2.3252,215.11,215.1,7.37677664]
[1736160446589,2.58,215.12,215.1,7.37677664]
[1736160447097,2.58,215.13,215.1,7.37677664]
[1736160447892,4.905,215.13,215.1,7.37677664]
[1736160450998,2.58,215.13,215.1,9.70197664]
[1736160451693,2.58,215.13,215.11,2.3251]
[1736160452998,2.58,215.15,215.12,9.70177664]
[1736160454194,2.3247,215.16,215.14,7.37677664]
[1736160456593,2.58,215.17,215.14,7.37677664]
[1736160456795,4.9045,215.17,215.14,7.37677664]
[1736160457393,2.3245,215.17,215.14,7.37677664]
[1736160459202,2.58,215.18,215.14,7.37677664]
[1736160459394,2.3246,215.16,215.14,7.37677664]
[1736160461703,2.58,215.18,215.14,7.37677664]
[1736160461903,2.3245,215.17,215.14,7.37677664]
[1736160462503,2.3246,215.16,215.14,7.37677664]
[1736160463707,2.325,215.13,215.09,2.3253]
[1736160463912,2.325,215.13,215.11,7.37677664]
[1736160464503,2.58,215.18,215.11,7.37677664]
[1736160464703,2.325,215.12,215.11,7.37677664]
[1736160466308,2.325,215.12,215.1,2.3252]
[1736160466507,2.3252,215.11,215.1,7.37677664]
[1736160466711,7.37677664,215.15,215.07,2.3255]
[1736160467002,7.37677664,215.15,215.08,7.37677664]
[1736160468510,7.37677664,215.15,215.08,9.70227664]
[1736160469409,7.37677664,215.15,215.08,7.37677664]
[1736160469604,2.3253,215.1,215.06,7.37677664]
[1736160470006,2.58,215.11,215.06,9.70247664]
[1736160470404,2.3253,215.1,215.08,7.37677664]
[1736160478915,2.3254,215.09,215.08,7.37677664]
[1736160479216,2.58,215.11,215.06,7.37677664]
[1736160480415,2.3256,215.07,215.06,7.37677664]
[1736160484719,2.3255,215.08,215.06,7.37677664]
[1736160493925,2.3255,215.08,215.03,44.92515223]
[1736160493926,7.37677664,215.08,215.03,44.92515223]
[1736160494115,7.37677664,215.08,215.01,7.37677664]
[1736160494320,7.37677664,215.08,215.0,7.37677664]
[1736160496523,2.3261,215.03,215.0,7.37677664]
[1736160498526,2.3261,215.03,215.0,9.70307664]
[1736160499223,2.56,215.04,215.02,7.37677664]
[1736160500628,2.56,215.04,215.02,9.70287664]
[1736160506236,2.56,215.04,215.03,2.326]
[1736160506430,2.56,215.08,215.02,7.37677664]
[1736160506634,2.56,215.08,215.07,7.37677664]
[1736160507439,4.8855,215.08,215.07,7.37677664]
[1736160507629,2.3255,215.08,215.07,7.37677664]
[1736160507837,2.56,215.08,215.07,7.37677664]
[1736160508840,2.56,215.08,215.07,9.70227664]
[1736160512143,3.48965272,215.15,215.09,2.3253]
[1736160512347,2.56,215.14,215.11,7.37677664]
[1736160512547,2.325,215.13,215.11,7.37677664]
[1736160513343,4.885,215.13,215.11,7.37677664]
[1736160517750,2.56,215.15,215.11,7.37677664]
[1736160517950,2.56,215.15,215.13,7.37677664]
[1736160518842,10.86642936,215.2,215.13,7.37677664]
[1736160519150,2.56,215.19,215.13,7.37677664]
[1736160519550,2.3247,215.15,215.13,7.37677664]
[1736160526056,3.48881592,215.21,215.13,7.37677664]
[1736160526057,5.81291592,215.21,215.17,2.3245]
[1736160526251,2.3241,215.21,215.19,7.37677664]
[1736160527147,133.51451979,215.22,215.19,7.37677664]
[1736160527347,2.56,215.21,215.19,7.37677664]
[1736160528049,7.37677664,215.26,215.19,7.37677664]
[1736160528255,2.56,215.24,215.19,7.37677664]
[1736160528456,2.3242,215.21,215.19,7.37677664]
[1736160529257,2.3242,215.2,215.19,7.37677664]
[1736160533556,2.3248,215.15,215.11,2.3251]
[1736160533752,2.3248,215.15,215.13,7.37677664]
[1736160535166,2.56,215.17,215.13,7.37677664]
[1736160535365,2.3248,215.14,215.13,7.37677664]
[1736160538361,2.56,215.17,215.13,7.37677664]
[1736160538561,2.3247,215.15,215.12,2.325]
[1736160540465,2.3247,215.15,215.14,7.37677664]
[1736160540962,2.3247,215.15,215.12,2.325]
[1736160541262,2.56,215.17,215.14,7.37677664]
[1736160542065,2.3247,215.15,215.14,7.37677664]
[1736160559379,2.3247,215.15,215.12,2.325]
[1736160559778,2.3247,215.15,215.14,7.37677664]
[1736160563381,2.54,215.21,215.14,7.37677664]
[1736160563682,2.54,215.21,215.19,7.37677664]
[1736160563882,2.3242,215.2,215.19,7.37677664]
[1736160567174,3.48817627,215.24,215.22,2.3239]
[1736160567381,149.85938423,215.25,215.23,7.37677664]
[1736160568283,2.3238,215.24,215.21,7.37677664]
[1736160568479,149.85938423,215.25,215.21,7.37677664]
[1736160568781,149.85938423,215.25,215.23,7.37677664]
[1736160568982,2.3236,215.26,215.23,7.37677664]
[1736160570283,9.91677664,215.28,215.23,7.37677664]
[1736160570483,2.3237,215.25,215.23,7.37677664]
[1736160571483,2.3236,215.26,215.23,7.37677664]
[1736160571686,3.4875205,215.3,215.25,7.37677664]
[1736160571886,2.54,215.29,215.25,7.37677664]
[1736160572289,2.3235,215.27,215.25,7.37677664]
[1736160573077,2.54,215.29,215.25,7.37677664]
[1736160573282,2.3235,215.26,215.25,7.37677664]
[1736160574687,2.3237,215.25,215.23,7.37677664]
[1736160582807,2.3236,215.26,215.23,7.37677664]
[1736160583003,2.3236,215.26,215.25,7.37677664]
[1736160586806,2.3233,215.28,215.25,7.37677664]
[1736160587009,2.3233,215.28,215.27,7.37677664]
[1736160587210,3.48724215,215.34,215.27,7.37677664]
[1736160587408,2.54,215.33,215.29,7.37677664]
[1736160588108,325.7979862,215.36,215.29,7.37677664]
[1736160588311,2.54,215.34,215.29,7.37677664]
[1736160588810,2.3228,215.33,215.31,7.37677664]
[1736160590920,2.3227,215.34,215.31,7.37677664]
[1736160591210,2.3227,215.34,215.33,7.37677664]
[1736160591408,2.3227,215.34,215.21,2.9505]
[1736160591409,2.54,215.36,215.26,2.3234]
[1736160591711,2.54,215.36,215.31,7.37677664]
[1736160597511,2.54,215.36,215.33,7.37677664]
[1736160600006,2.54,215.36,215.25,1.4948]
[1736160600211,2.54,215.36,215.32,7.37677664]
[1736160601108,2.54,215.36,215.28,7.37677664]
[1736160601305,7.37677664,215.34,215.25,1.4948]
[1736160601613,7.37677664,215.34,215.27,7.37677664]
[1736160607815,7.37677664,215.34,215.24,2.3237]
[1736160608017,7.37677664,215.34,215.27,7.37677664]
[1736160617316,7.37677664,215.34,215.21,1.4457]
[1736160617522,7.37677664,215.34,215.26,7.37677664]
[1736160620125,10.86297126,215.34,215.26,7.37677664]
[1736160624326,3.48619462,215.34,215.3,7.37677664]
[1736160624525,2.54,215.33,215.32,7.37677664]
[1736160626733,3.48628586,215.38,215.21,1.4457]
[1736160626928,2.54,215.37,215.32,7.37677664]
[1736160627432,2.54,215.37,215.21,1.4457]
[1736160627634,2.54,215.37,215.31,7.37677664]
[1736160628524,9.91677664,215.37,215.21,1.4457]
[1736160628729,9.91677664,215.37,215.3,7.37677664]
[1736160628933,13.4030625,215.37,215.3,7.37677664]
[1736160630225,18.84378447,215.37,215.3,7.37677664]
[1736160630535,7.37677664,215.35,215.28,7.37677664]
[1736160631833,10.8630625,215.35,215.28,7.37677664]
[1736160632229,16.30586244,215.35,215.28,7.37677664]
[1736160632424,10.8630625,215.35,215.28,7.37677664]
[1736160632734,16.30573679,215.35,215.28,7.37677664]
[1736160633132,7.37677664,215.31,215.21,1.4457]
[1736160633325,7.37677664,215.29,215.22,7.37677664]
[1736160633530,7.37677664,215.29,215.21,1.4457]
[1736160633531,2.54,215.28,215.21,8.82247664]
[1736160633729,2.54,215.28,215.21,1.4457]
[1736160633936,2.54,215.28,215.22,7.37677664]
[1736160634125,2.54,215.28,215.24,7.37677664]
[1736160634733,2.54,215.28,215.26,7.37677664]
[1736160635732,2.54,215.3,215.26,7.37677664]
[1736160636133,2.54,215.3,215.28,7.37677664]
[1736160647447,2.54,215.31,215.28,7.37677664]
[1736160648544,2.54,215.31,215.26,7.37677664]
[1736160654248,9.91677664,215.31,215.21,1.4457]
[1736160654453,7.37677664,215.29,215.22,7.37677664]
[1736160655249,2.3236,215.26,215.22,9.70077664]
[1736160656252,2.3236,215.26,215.24,7.37677664]
[1736160657552,2.3236,215.26,215.22,2.324]
[1736160657764,2.54,215.26,215.19,1.3844]
[1736160657964,2.54,215.26,215.21,7.37677664]
[1736160659568,7.37677664,215.25,215.18,7.37677664]
[1736160659969,2.3242,215.2,215.18,7.37677664]
[1736160660864,2.3243,215.19,215.18,7.37677664]
[1736160661068,2.3243,215.19,215.17,7.37677664]
[1736160663674,2.54,215.21,215.17,7.37677664]
[1736160663870,2.3242,215.2,215.17,7.37677664]
[1736160664473,2.54,215.21,215.19,7.37677664]
[1736160664672,2.54,215.24,215.19,7.37677664]
[1736160664876,2.54,215.24,215.23,7.37677664]
[1736160665670,4.8638,215.24,215.23,7.37677664]
[1736160667870,2.54,215.24,215.23,7.37677664]
[1736160671881,2.3237,215.25,215.23,7.37677664]
[1736160675082,2.3238,215.24,215.23,7.37677664]
[1736160675981,4.8636,215.26,215.23,7.37677664]
[1736160676383,2.3236,215.26,215.23,7.37677664]
[1736160677877,2.54,215.27,215.23,7.37677664]
[1736160678087,2.3237,215.25,215.23,7.37677664]
[1736160678284,2.54,215.27,215.15,1.524]
[1736160678486,7.37677664,215.22,215.15,8.90077664]
[1736160678685,2.3245,215.18,215.15,1.524]
[1736160678883,2.3245,215.18,215.15,8.90077664]
[1736160679381,2.54,215.21,215.15,8.90077664]
[1736160680382,2.3247,215.16,215.11,47.23307318]
[1736160680583,2.54,215.21,215.14,7.37677664]
[1736160680890,2.54,215.21,215.17,7.37677664]
[1736160682493,2.3243,215.2,215.17,7.37677664]
[1736160686596,4.8642,215.21,215.17,7.37677664]
[1736160687195,2.54,215.21,215.17,7.37677664]
[1736160687496,2.3242,215.2,215.17,9.70127664]
[1736160688287,2.3242,215.2,215.17,7.37677664]
[1736160692593,2.3243,215.19,215.17,7.37677664]
[1736160693093,2.54,215.21,215.16,7.37677664]
[1736160693293,2.3246,215.17,215.16,7.37677664]
[1736160702904,2.54,215.21,215.16,7.37677664]
[1736160703203,2.3244,215.18,215.15,2.3247]
[1736160703497,2.3244,215.18,215.15,9.70147664]
[1736160704596,2.3245,215.17,215.15,7.37677664]
[1736160707005,3.48773559,215.24,215.15,7.37677664]
[1736160707312,2.54,215.23,215.2,7.37677664]
[1736160708003,2.54,215.23,215.18,7.37677664]
[1736160708208,2.3242,215.21,215.18,7.37677664]
[1736160711509,2.3242,215.21,215.17,2.3245]
[1736160712004,2.3244,215.18,215.15,2.3247]
[1736160712208,7.37677664,215.2,215.11,44.90797318]
[1736160712605,2.3247,215.16,215.13,2.3249]
[1736160720903,2.3247,215.16,215.14,2.3248]
[1736160723612,2.3247,215.16,215.13,2.3249]
[1736160725015,2.3248,215.15,215.12,9.70177664]
[1736160725217,9.91677664,215.18,215.11,44.90797318]
[1736160725406,7.37677664,215.16,215.08,7.37677664]
[1736160725606,2.3252,215.11,215.08,9.70217664]
[1736160728109,2.3253,215.1,215.08,7.37677664]
[1736160728311,2.54,215.13,215.03,2.8818]
[1736160728511,7.37677664,215.12,215.06,7.37677664]
[1736160729111,7.37677664,215.1,215.04,7.37677664]
[1736160729816,2.3255,215.09,215.04,7.37677664]
[1736160730017,2.54,215.08,215.04,7.37677664]
[1736160730213,2.54,215.08,215.03,2.326]
[1736160730415,2.3257,215.06,215.03,9.70277664]
[1736160731915,2.3259,215.05,215.01,2.3262]
[1736160732116,2.3259,215.05,215.02,7.37677664]
[1736160734219,2.3259,215.05,215.01,2.3262]
[1736160734419,2.3259,215.05,215.02,7.37677664]
[1736160734912,2.54,215.08,215.04,7.37677664]
[1736160735313,2.54,215.08,215.05,2.3258]
[1736160735517,4.8655,215.08,215.05,2.3258]
[1736160735915,2.54,215.08,215.05,2.3258]
[1736160737118,2.54,215.08,215.04,7.37677664]
[1736160737319,2.54,215.08,215.04,9.70267664]
[1736160738220,2.54,215.08,215.02,2.3261]
[1736160738417,9.91677664,215.08,215.02,9.70287664]
[1736160738717,2.3257,215.06,215.02,9.70287664]
[1736160741222,9.91677664,215.08,215.01,2.3262]
[1736160742023,2.3257,215.06,215.01,2.3262]
[1736160742321,9.91677664,215.08,215.01,2.3262]
[1736160743125,2.3259,215.05,215.01,2.3262]
[1736160743620,2.3259,215.05,215.02,7.37677664]
[1736160747429,2.3259,215.05,215.01,2.3262]
[1736160749331,2.3259,215.04,215.01,2.3262]
[1736160749532,2.54,215.03,215.02,7.37677664]
[1736160753438,2.54,215.03,215.01,2.3262]
[1736160758844,2.54,215.03,214.98,1.4693]
[1736160758845,2.54,215.03,215.02,9.70287664]
[1736160759945,2.54,215.03,215.02,7.37677664]
[1736160760146,2.54,215.03,215.01,2.3262]
[1736160760935,2.54,215.03,214.98,1.4693]
[1736160761137,2.3262,215.02,215.0,2.3263]
[1736160765546,9.91677664,215.03,214.92,1.3937]
[1736160765747,2.3265,214.99,214.96,2.3267]
[1736160765938,2.54,214.98,214.96,2.3267]
[1736160766248,2.54,214.98,214.97,2.3267]
[1736160766946,4.8667,214.98,214.94,2.3269]
[1736160767253,4.8667,214.98,214.93,7.37677664]
[1736160768546,4.8667,214.98,214.95,7.37677664]
[1736160769551,4.8667,214.98,214.96,2.3268]
[1736160770055,2.54,214.98,214.96,2.3268]
[1736160771149,3.4910958,215.07,214.97,9.70347664]
[1736160771348,3.4910958,215.07,214.92,1.3937]
[1736160771349,2.54,215.06,215.01,7.37677664]
[1736160772548,2.3259,215.05,215.02,2.3261]
[1736160772745,2.54,215.06,215.01,7.37677664]
[1736160773455,2.54,215.06,215.03,9.70277664]
[1736160773649,2.54,215.06,215.01,7.37677664]
[1736160774548,4.8657,215.06,215.02,2.3261]
[1736160776153,7.37677664,215.03,214.96,7.37677664]
[1736160776356,2.54,215.02,214.96,7.37677664]
[1736160777361,2.54,215.02,214.98,2.3265]
[1736160778463,4.8661,215.02,214.98,2.3265]
[1736160780361,4.8661,215.02,214.99,2.3264]
[1736160781861,2.54,215.04,215.01,2.3262]
[1736160782063,2.54,215.04,215.02,7.37677664]
[1736160782263,2.54,215.04,215.01,2.3262]
[1736160789068,4.8659,215.04,215.01,2.3262]
[1736160790468,2.3261,215.03,214.99,9.70317664]
[1736160790868,2.54,215.04,214.99,9.70317664]
[1736160792474,2.3261,215.02,214.99,9.70317664]
[1736160801278,2.54,215.01,214.99,9.70317664]
[1736160803689,2.54,215.01,215.0,2.3263]
[1736160811689,2.54,215.01,214.94,36.01709078]
[1736160811884,2.54,215.01,214.95,7.37677664]
[1736160812081,2.3266,214.98,214.95,2.3269]